[Event "Titled Tuesday Blitz March 07 Early 2023"]
[White "Korchmar, Vasiliy"]
[Black "Lehtosaari, Mauri"]
[WhiteFideId "24131750"]
[BlackFideId "501999"]
[WhiteElo "2370"]
[BlackElo "2519"]
[Result "1-0"]
[Round "06"]
[TimeControl "180+2"]
[Date "2023.03.07"]
[WhiteClock "0:00:15"]
[BlackClock "0:00:07"]

1. e4 {[%clk 0:03:00]}  c5 {[%clk 0:02:59]} 2. Nf3 {[%clk 0:03:00]}  e6 {[%clk 0:03:00]} 3. g3 {[%clk 0:03:00]}  Nc6 {[%clk 0:02:55]} 4. Bg2 {[%clk 0:02:59]}  Nf6 {[%clk 0:02:52]} 5. d3 {[%clk 0:02:57]}  d5 {[%clk 0:02:51]} 6. Nbd2 {[%clk 0:02:57]}  Be7 {[%clk 0:02:50]} 7. O-O {[%clk 0:02:56]}  O-O {[%clk 0:02:50]} 8. Re1 {[%clk 0:02:49]}  Rb8 {[%clk 0:02:16]} 9. e5 {[%clk 0:02:47]}  Nd7 {[%clk 0:02:15]} 10. Nf1 {[%clk 0:02:48]}  b5 {[%clk 0:02:15]} 11. h4 {[%clk 0:02:47]}  a5 {[%clk 0:02:15]} 12. h5 {[%clk 0:02:47]}  a4 {[%clk 0:02:04]} 13. N1h2 {[%clk 0:02:37]}  b4 {[%clk 0:01:58]} 14. Ng4 {[%clk 0:02:32]}  Re8 {[%clk 0:01:26]} 15. Bf4 {[%clk 0:02:27]}  Ba6 {[%clk 0:01:23]} 16. Qd2 {[%clk 0:02:22]}  a3 {[%clk 0:01:14]} 17. b3 {[%clk 0:02:16]}  c4 {[%clk 0:01:14]} 18. d4 {[%clk 0:02:10]}  cxb3 {[%clk 0:01:08]} 19. cxb3 {[%clk 0:02:11]}  Na7 {[%clk 0:01:05]} 20. h6 {[%clk 0:02:04]}  g6 {[%clk 0:01:04]} 21. Bg5 {[%clk 0:02:04]}  Nb5 {[%clk 0:01:00]} 22. Bf1 {[%clk 0:02:00]}  Ra8 {[%clk 0:00:51]} 23. Bxe7 {[%clk 0:01:42]}  Qxe7 {[%clk 0:00:50]} 24. Qf4 {[%clk 0:01:43]}  Nc3 {[%clk 0:00:47]} 25. Bxa6 {[%clk 0:01:31]}  Rxa6 {[%clk 0:00:48]} 26. Ng5 {[%clk 0:01:32]}  Rc6 {[%clk 0:00:41]} 27. Re3 {[%clk 0:01:29]}  Rf8 {[%clk 0:00:34]} 28. Kg2 {[%clk 0:01:25]}  Rcc8 {[%clk 0:00:22]} 29. Rd3 {[%clk 0:01:07]}  Ne4 {[%clk 0:00:20]} 30. Nxe4 {[%clk 0:01:04]}  dxe4 {[%clk 0:00:21]} 31. Qxe4 {[%clk 0:01:05]}  Nb6 {[%clk 0:00:20]} 32. Nf6+ {[%clk 0:01:04]}  Kh8 {[%clk 0:00:20]} 33. Rd2 {[%clk 0:00:55]}  Rfd8 {[%clk 0:00:19]} 34. Rc2 {[%clk 0:00:53]}  Rxc2 {[%clk 0:00:18]} 35. Qxc2 {[%clk 0:00:54]}  Qb7+ {[%clk 0:00:17]} 36. Kg1 {[%clk 0:00:47]}  Nd5 {[%clk 0:00:17]} 37. Nxd5 {[%clk 0:00:42]}  Qxd5 {[%clk 0:00:18]} 38. Rd1 {[%clk 0:00:36]}  Qf3 {[%clk 0:00:17]} 39. Rd3 {[%clk 0:00:22]}  Qd5 {[%clk 0:00:16]} 40. Qd2 {[%clk 0:00:22]}  Kg8 {[%clk 0:00:15]} 41. Qg5 {[%clk 0:00:20]}  Qd7 {[%clk 0:00:10]} 42. Qf6 {[%clk 0:00:20]}  Kf8 {[%clk 0:00:11]} 43. Qg7+ {[%clk 0:00:17]}  Ke7 {[%clk 0:00:10]} 44. Qxh7 {[%clk 0:00:18]}  Qb5 {[%clk 0:00:09]} 45. Rf3 {[%clk 0:00:14]}  Rf8 {[%clk 0:00:08]} 46. Qg7 {[%clk 0:00:14]}  Qe2 {[%clk 0:00:09]} 47. Kg2 {[%clk 0:00:14]}  Qe4 {[%clk 0:00:08]} 48. h7 {[%clk 0:00:15]}  Ke8 {[%clk 0:00:07]} 49. Qxf8+ {[%clk 0:00:15]} 1-0


[Site "https://www.chess.com"]

[Event "Titled Tuesday Blitz March 07 Early 2023"]
[White "Kowalczyk, Pawel"]
[Black "Moksh Amit Doshi"]
[WhiteFideId "1130641"]
[BlackFideId "25064967"]
[WhiteElo "2324"]
[BlackElo "2297"]
[Result "1-0"]
[Round "06"]
[TimeControl "180+2"]
[Date "2023.03.07"]
[WhiteClock "0:00:20"]
[BlackClock "0:00:13"]

1. e4 {[%clk 0:02:51]}  c5 {[%clk 0:02:56]} 2. Ne2 {[%clk 0:02:51]}  e6 {[%clk 0:02:53]} 3. g3 {[%clk 0:02:51]}  Nc6 {[%clk 0:02:53]} 4. Bg2 {[%clk 0:02:51]}  g6 {[%clk 0:02:53]} 5. O-O {[%clk 0:02:50]}  Bg7 {[%clk 0:02:54]} 6. c3 {[%clk 0:02:51]}  Nge7 {[%clk 0:02:51]} 7. d4 {[%clk 0:02:51]}  cxd4 {[%clk 0:02:52]} 8. cxd4 {[%clk 0:02:52]}  d5 {[%clk 0:02:52]} 9. e5 {[%clk 0:02:51]}  O-O {[%clk 0:02:52]} 10. Nbc3 {[%clk 0:02:50]}  Nf5 {[%clk 0:02:49]} 11. h4 {[%clk 0:02:43]}  Qb6 {[%clk 0:02:48]} 12. Na4 {[%clk 0:02:43]}  Qb5 {[%clk 0:02:40]} 13. Bg5 {[%clk 0:02:35]}  Bd7 {[%clk 0:02:08]} 14. g4 {[%clk 0:02:31]}  Nfxd4 {[%clk 0:02:07]} 15. Nxd4 {[%clk 0:02:16]}  Nxd4 {[%clk 0:02:08]} 16. Nc3 {[%clk 0:02:16]}  Qc4 {[%clk 0:01:54]} 17. f4 {[%clk 0:02:09]}  Nb5 {[%clk 0:01:42]} 18. Ne2 {[%clk 0:02:03]}  Rac8 {[%clk 0:01:36]} 19. a4 {[%clk 0:01:59]}  Nc7 {[%clk 0:01:36]} 20. Be7 {[%clk 0:01:56]}  Rfe8 {[%clk 0:01:36]} 21. Bd6 {[%clk 0:01:56]}  Na6 {[%clk 0:01:30]} 22. b3 {[%clk 0:01:54]}  Qc2 {[%clk 0:01:29]} 23. Nd4 {[%clk 0:01:53]}  Qxd1 {[%clk 0:01:28]} 24. Rfxd1 {[%clk 0:01:54]}  Nc5 {[%clk 0:01:28]} 25. h5 {[%clk 0:01:49]}  Bf8 {[%clk 0:01:27]} 26. Bxf8 {[%clk 0:01:48]}  Kxf8 {[%clk 0:01:28]} 27. hxg6 {[%clk 0:01:49]}  hxg6 {[%clk 0:01:29]} 28. Kf2 {[%clk 0:01:49]}  Kg7 {[%clk 0:01:26]} 29. Ke3 {[%clk 0:01:47]}  Na6 {[%clk 0:01:25]} 30. Rac1 {[%clk 0:01:46]}  Nb4 {[%clk 0:01:25]} 31. Bf3 {[%clk 0:01:40]}  Rh8 {[%clk 0:01:24]} 32. Rxc8 {[%clk 0:01:31]}  Rxc8 {[%clk 0:01:25]} 33. Kd2 {[%clk 0:01:30]}  Rh8 {[%clk 0:01:22]} 34. Rh1 {[%clk 0:01:23]}  Rxh1 {[%clk 0:01:21]} 35. Bxh1 {[%clk 0:01:24]}  a5 {[%clk 0:01:09]} 36. Kc3 {[%clk 0:01:20]}  f6 {[%clk 0:01:08]} 37. exf6+ {[%clk 0:01:19]}  Kxf6 {[%clk 0:01:09]} 38. g5+ {[%clk 0:01:19]}  Ke7 {[%clk 0:01:09]} 39. Bg2 {[%clk 0:01:14]}  Kd6 {[%clk 0:01:06]} 40. Nf3 {[%clk 0:01:14]}  Nc6 {[%clk 0:01:05]} 41. Nh4 {[%clk 0:01:13]}  Be8 {[%clk 0:00:56]} 42. Bf1 {[%clk 0:01:11]}  e5 {[%clk 0:00:56]} 43. f5 {[%clk 0:01:08]}  d4+ {[%clk 0:00:46]} 44. Kc4 {[%clk 0:00:56]}  Bf7+ {[%clk 0:00:43]} 45. Kb5 {[%clk 0:00:55]}  Bxb3 {[%clk 0:00:42]} 46. Nxg6 {[%clk 0:00:52]}  e4 {[%clk 0:00:42]} 47. Nh4 {[%clk 0:00:44]}  d3 {[%clk 0:00:43]} 48. g6 {[%clk 0:00:42]}  d2 {[%clk 0:00:40]} 49. Be2 {[%clk 0:00:35]}  Ne7 {[%clk 0:00:36]} 50. f6 {[%clk 0:00:28]}  Nd5 {[%clk 0:00:36]} 51. f7 {[%clk 0:00:22]}  Ke7 {[%clk 0:00:28]} 52. Nf5+ {[%clk 0:00:21]}  Kf8 {[%clk 0:00:28]} 53. Bh5 {[%clk 0:00:22]}  d1=Q {[%clk 0:00:13]} 54. g7# {[%clk 0:00:20]} 1-0


[Site "https://www.chess.com"]

[Event "Titled Tuesday Blitz March 07 Early 2023"]
[White "Fernandez Garcia, Gumersindo"]
[Black "Matinian, Nikita"]
[WhiteFideId "24516740"]
[BlackFideId "24129100"]
[WhiteElo "2093"]
[BlackElo "2422"]
[Result "0-1"]
[Round "06"]
[TimeControl "180+2"]
[Date "2023.03.07"]
[WhiteClock "0:00:17"]
[BlackClock "0:01:40"]

1. d4 {[%clk 0:03:00]}  Nf6 {[%clk 0:02:59]} 2. c4 {[%clk 0:03:00]}  g6 {[%clk 0:03:00]} 3. Nc3 {[%clk 0:03:01]}  Bg7 {[%clk 0:03:00]} 4. e4 {[%clk 0:03:01]}  O-O {[%clk 0:03:01]} 5. Be2 {[%clk 0:03:01]}  d6 {[%clk 0:03:02]} 6. Be3 {[%clk 0:03:01]}  Nbd7 {[%clk 0:03:02]} 7. g4 {[%clk 0:03:02]}  c5 {[%clk 0:03:00]} 8. d5 {[%clk 0:03:01]}  a6 {[%clk 0:02:54]} 9. g5 {[%clk 0:03:01]}  Nh5 {[%clk 0:02:52]} 10. a4 {[%clk 0:02:54]}  f5 {[%clk 0:02:28]} 11. exf5 {[%clk 0:02:02]}  Rxf5 {[%clk 0:02:29]} 12. Bg4 {[%clk 0:01:56]}  Ne5 {[%clk 0:02:27]} 13. Bxh5 {[%clk 0:01:36]}  gxh5 {[%clk 0:02:26]} 14. Qe2 {[%clk 0:01:30]}  Qb6 {[%clk 0:02:21]} 15. O-O-O {[%clk 0:01:30]}  Qb3 {[%clk 0:02:16]} 16. f4 {[%clk 0:00:38]}  Nxc4 {[%clk 0:02:13]} 17. Rd3 {[%clk 0:00:36]}  b5 {[%clk 0:01:51]} 18. Nf3 {[%clk 0:00:27]}  bxa4 {[%clk 0:01:42]} 19. Nh4 {[%clk 0:00:26]}  a3 {[%clk 0:01:41]} 20. Nb1 {[%clk 0:00:17]}  axb2+ {[%clk 0:01:40]} 0-1


[Site "https://www.chess.com"]

[Event "Titled Tuesday Blitz March 07 Early 2023"]
[White "Preotu, Razvan"]
[Black "Degenbaev, Aziz"]
[WhiteFideId "2613280"]
[BlackFideId "13802640"]
[WhiteElo "2407"]
[BlackElo "2152"]
[Result "1-0"]
[Round "06"]
[TimeControl "180+2"]
[Date "2023.03.07"]
[WhiteClock "0:01:56"]
[BlackClock "0:00:21"]

1. e4 {[%clk 0:02:58]}  c5 {[%clk 0:02:59]} 2. Nf3 {[%clk 0:02:58]}  d6 {[%clk 0:02:59]} 3. d4 {[%clk 0:02:58]}  cxd4 {[%clk 0:03:00]} 4. Nxd4 {[%clk 0:02:59]}  Nf6 {[%clk 0:03:00]} 5. Nc3 {[%clk 0:02:59]}  a6 {[%clk 0:03:01]} 6. Be3 {[%clk 0:03:00]}  e5 {[%clk 0:02:50]} 7. Nb3 {[%clk 0:03:00]}  Be7 {[%clk 0:02:47]} 8. h3 {[%clk 0:03:00]}  Be6 {[%clk 0:02:29]} 9. Qf3 {[%clk 0:03:00]}  O-O {[%clk 0:02:19]} 10. O-O-O {[%clk 0:02:59]}  a5 {[%clk 0:02:13]} 11. Nc5 {[%clk 0:02:51]}  Bc8 {[%clk 0:02:01]} 12. g4 {[%clk 0:02:49]}  b6 {[%clk 0:01:56]} 13. N5a4 {[%clk 0:02:37]}  Nfd7 {[%clk 0:01:45]} 14. Nd5 {[%clk 0:02:31]}  Bg5 {[%clk 0:01:44]} 15. Bxg5 {[%clk 0:02:14]}  Qxg5+ {[%clk 0:01:43]} 16. Qe3 {[%clk 0:02:12]}  Qxe3+ {[%clk 0:01:37]} 17. Nxe3 {[%clk 0:02:13]}  Bb7 {[%clk 0:01:31]} 18. f3 {[%clk 0:02:07]}  Nc6 {[%clk 0:00:32]} 19. Rxd6 {[%clk 0:02:05]}  Rad8 {[%clk 0:00:32]} 20. Bb5 {[%clk 0:02:04]}  Nc5 {[%clk 0:00:26]} 21. Nxc5 {[%clk 0:01:57]}  bxc5 {[%clk 0:00:22]} 22. Rxc6 {[%clk 0:01:55]}  Bxc6 {[%clk 0:00:21]} 23. Bxc6 {[%clk 0:01:56]} 1-0


[Site "https://www.chess.com"]

[Event "Titled Tuesday Blitz March 07 Early 2023"]
[White "Martinez Ramirez, Lennis"]
[Black "Karas, Marek"]
[WhiteFideId "3509079"]
[BlackFideId "14928558"]
[WhiteElo "2439"]
[BlackElo "2233"]
[Result "1-0"]
[Round "06"]
[TimeControl "180+2"]
[Date "2023.03.07"]
[WhiteClock "0:00:10"]
[BlackClock "0:00:22"]

1. c4 {[%clk 0:02:53]}  e6 {[%clk 0:03:00]} 2. g3 {[%clk 0:02:53]}  d5 {[%clk 0:02:59]} 3. Bg2 {[%clk 0:02:54]}  Nf6 {[%clk 0:02:59]} 4. Nf3 {[%clk 0:02:55]}  Be7 {[%clk 0:02:53]} 5. O-O {[%clk 0:02:55]}  O-O {[%clk 0:02:51]} 6. b3 {[%clk 0:02:55]}  b6 {[%clk 0:02:48]} 7. Bb2 {[%clk 0:02:54]}  Bb7 {[%clk 0:02:47]} 8. Ne5 {[%clk 0:02:54]}  Nbd7 {[%clk 0:02:37]} 9. d4 {[%clk 0:02:54]}  c6 {[%clk 0:02:30]} 10. Nd2 {[%clk 0:02:53]}  Nxe5 {[%clk 0:02:19]} 11. dxe5 {[%clk 0:02:53]}  Nd7 {[%clk 0:02:19]} 12. e4 {[%clk 0:02:52]}  dxc4 {[%clk 0:02:15]} 13. Nxc4 {[%clk 0:02:51]}  c5 {[%clk 0:02:14]} 14. Qg4 {[%clk 0:01:27]}  Qc7 {[%clk 0:02:05]} 15. Nd6 {[%clk 0:01:20]}  Rfd8 {[%clk 0:01:54]} 16. f4 {[%clk 0:01:14]}  Bf8 {[%clk 0:01:37]} 17. Rad1 {[%clk 0:01:04]}  Bc6 {[%clk 0:01:19]} 18. f5 {[%clk 0:00:55]}  exf5 {[%clk 0:01:11]} 19. Qxf5 {[%clk 0:00:39]}  Nb8 {[%clk 0:00:56]} 20. Rde1 {[%clk 0:00:15]}  Bxd6 {[%clk 0:00:49]} 21. exd6 {[%clk 0:00:15]}  Qd7 {[%clk 0:00:41]} 22. Qg5 {[%clk 0:00:15]}  f6 {[%clk 0:00:30]} 23. Rxf6 {[%clk 0:00:14]}  Na6 {[%clk 0:00:27]} 24. Ref1 {[%clk 0:00:10]}  Kh8 {[%clk 0:00:22]} 25. Rf7 {[%clk 0:00:10]} 1-0


[Site "https://www.chess.com"]

[Event "Titled Tuesday Blitz March 07 Early 2023"]
[White "Skliarov, Viktor"]
[Black "Goltseva, Ekaterina"]
[WhiteFideId "14106736"]
[BlackFideId "24173770"]
[WhiteElo "2289"]
[BlackElo "2200"]
[Result "1-0"]
[Round "06"]
[TimeControl "180+2"]
[Date "2023.03.07"]
[WhiteClock "0:00:09"]
[BlackClock "0:00:03"]

1. e4 {[%clk 0:03:00]}  e6 {[%clk 0:02:58]} 2. d4 {[%clk 0:03:00]}  d5 {[%clk 0:02:59]} 3. e5 {[%clk 0:03:01]}  c5 {[%clk 0:02:58]} 4. c3 {[%clk 0:03:02]}  Qa5 {[%clk 0:02:59]} 5. dxc5 {[%clk 0:02:57]}  Qc7 {[%clk 0:02:59]} 6. Nf3 {[%clk 0:02:54]}  Nc6 {[%clk 0:02:59]} 7. Bf4 {[%clk 0:02:53]}  Bxc5 {[%clk 0:02:59]} 8. Bd3 {[%clk 0:02:52]}  Nge7 {[%clk 0:02:58]} 9. Bg3 {[%clk 0:02:50]}  Ng6 {[%clk 0:02:55]} 10. Qe2 {[%clk 0:02:48]}  a5 {[%clk 0:02:50]} 11. a4 {[%clk 0:02:43]}  Bd7 {[%clk 0:02:49]} 12. Na3 {[%clk 0:02:38]}  Nce7 {[%clk 0:02:33]} 13. Nb5 {[%clk 0:02:34]}  Bxb5 {[%clk 0:02:30]} 14. Bxb5+ {[%clk 0:02:35]}  Kf8 {[%clk 0:02:30]} 15. Bd3 {[%clk 0:02:33]}  Nf5 {[%clk 0:02:28]} 16. Bxf5 {[%clk 0:02:01]}  exf5 {[%clk 0:02:28]} 17. h4 {[%clk 0:01:59]}  f4 {[%clk 0:02:19]} 18. Bh2 {[%clk 0:01:57]}  h5 {[%clk 0:02:17]} 19. O-O-O {[%clk 0:01:40]}  Qc6 {[%clk 0:01:59]} 20. Qc2 {[%clk 0:01:36]}  Re8 {[%clk 0:01:47]} 21. Rhe1 {[%clk 0:01:32]}  Rh6 {[%clk 0:01:44]} 22. Qb3 {[%clk 0:01:15]}  Bxf2 {[%clk 0:01:41]} 23. Re2 {[%clk 0:00:47]}  Be3+ {[%clk 0:01:38]} 24. Kb1 {[%clk 0:00:46]}  Ne7 {[%clk 0:01:27]} 25. Ng5 {[%clk 0:00:35]}  Qc8 {[%clk 0:01:06]} 26. Ka1 {[%clk 0:00:29]}  Rb6 {[%clk 0:01:05]} 27. Qc2 {[%clk 0:00:23]}  Qf5 {[%clk 0:01:00]} 28. Qxf5 {[%clk 0:00:21]}  Nxf5 {[%clk 0:01:01]} 29. Rxd5 {[%clk 0:00:21]}  Nxh4 {[%clk 0:00:55]} 30. Rd7 {[%clk 0:00:18]}  Rxe5 {[%clk 0:00:43]} 31. Nxf7 {[%clk 0:00:17]}  Rf5 {[%clk 0:00:33]} 32. Nd6 {[%clk 0:00:12]}  Rd5 {[%clk 0:00:07]} 33. Rf7+ {[%clk 0:00:10]}  Kg8 {[%clk 0:00:07]} 34. Rxf4 {[%clk 0:00:10]}  Rd1+ {[%clk 0:00:04]} 35. Ka2 {[%clk 0:00:10]}  Bxf4 {[%clk 0:00:03]} 36. Re8+ {[%clk 0:00:09]} 1-0


[Site "https://www.chess.com"]

[Event "Titled Tuesday Blitz March 07 Early 2023"]
[White "Dehtiarov, Roman"]
[Black "Shevtchenko, Olesya"]
[WhiteFideId "14186640"]
[BlackFideId "24131890"]
[WhiteElo "2162"]
[BlackElo "2003"]
[Result "1-0"]
[Round "06"]
[TimeControl "180+2"]
[Date "2023.03.07"]
[WhiteClock "0:01:26"]
[BlackClock "0:00:15"]

1. e4 {[%clk 0:02:49]}  c6 {[%clk 0:02:58]} 2. Nc3 {[%clk 0:02:49]}  d5 {[%clk 0:02:59]} 3. Nf3 {[%clk 0:02:50]}  dxe4 {[%clk 0:02:59]} 4. Nxe4 {[%clk 0:02:51]}  Nf6 {[%clk 0:02:59]} 5. Qe2 {[%clk 0:02:51]}  Nxe4 {[%clk 0:03:00]} 6. Qxe4 {[%clk 0:02:52]}  Qd5 {[%clk 0:03:00]} 7. Qf4 {[%clk 0:02:52]}  Qf5 {[%clk 0:03:00]} 8. Qxf5 {[%clk 0:02:50]}  Bxf5 {[%clk 0:03:00]} 9. c3 {[%clk 0:02:51]}  g6 {[%clk 0:02:59]} 10. d4 {[%clk 0:02:51]}  Bg7 {[%clk 0:02:59]} 11. Bc4 {[%clk 0:02:52]}  Nd7 {[%clk 0:02:59]} 12. O-O {[%clk 0:02:52]}  O-O {[%clk 0:02:56]} 13. Re1 {[%clk 0:02:52]}  a5 {[%clk 0:02:37]} 14. a4 {[%clk 0:02:49]}  Rfe8 {[%clk 0:02:33]} 15. h3 {[%clk 0:02:49]}  Nb6 {[%clk 0:02:24]} 16. Bb3 {[%clk 0:02:45]}  Bd3 {[%clk 0:02:23]} 17. Bf4 {[%clk 0:02:36]}  Bc4 {[%clk 0:02:20]} 18. Bc2 {[%clk 0:02:36]}  Bd5 {[%clk 0:02:18]} 19. Nd2 {[%clk 0:02:33]}  Nc4 {[%clk 0:02:17]} 20. b3 {[%clk 0:02:24]}  Nxd2 {[%clk 0:02:14]} 21. Bxd2 {[%clk 0:02:25]}  e5 {[%clk 0:02:03]} 22. c4 {[%clk 0:02:24]}  Be6 {[%clk 0:01:53]} 23. dxe5 {[%clk 0:02:22]}  h6 {[%clk 0:01:31]} 24. f4 {[%clk 0:02:19]}  h5 {[%clk 0:01:23]} 25. Bc3 {[%clk 0:02:17]}  Bf8 {[%clk 0:01:20]} 26. Rad1 {[%clk 0:02:17]}  Bc5+ {[%clk 0:01:18]} 27. Kf1 {[%clk 0:02:14]}  b6 {[%clk 0:01:09]} 28. Be4 {[%clk 0:02:13]}  Rac8 {[%clk 0:01:04]} 29. Bd4 {[%clk 0:02:13]}  Bb4 {[%clk 0:01:03]} 30. Re3 {[%clk 0:02:03]}  Red8 {[%clk 0:01:00]} 31. Red3 {[%clk 0:02:01]}  b5 {[%clk 0:00:31]} 32. axb5 {[%clk 0:01:45]}  cxb5 {[%clk 0:00:31]} 33. cxb5 {[%clk 0:01:46]}  Rc2 {[%clk 0:00:28]} 34. Be3 {[%clk 0:01:33]}  Rxd3 {[%clk 0:00:21]} 35. Rxd3 {[%clk 0:01:34]}  Rb2 {[%clk 0:00:15]} 36. b6 {[%clk 0:01:26]} 1-0


[Site "https://www.chess.com"]

[Event "Titled Tuesday Blitz March 07 Early 2023"]
[White "Malek, Jan"]
[Black "Foerster-Yialamas, Lucas"]
[WhiteFideId "21864080"]
[BlackFideId "30901774"]
[WhiteElo "2255"]
[BlackElo "2067"]
[Result "1-0"]
[Round "06"]
[TimeControl "180+2"]
[Date "2023.03.07"]
[WhiteClock "0:00:29"]
[BlackClock "0:00:20"]

1. b3 {[%clk 0:03:00]}  e5 {[%clk 0:02:55]} 2. Bb2 {[%clk 0:02:59]}  Nc6 {[%clk 0:02:56]} 3. e4 {[%clk 0:02:59]}  g6 {[%clk 0:02:48]} 4. Bb5 {[%clk 0:02:59]}  Bg7 {[%clk 0:02:48]} 5. Nf3 {[%clk 0:02:59]}  Qe7 {[%clk 0:02:45]} 6. Na3 {[%clk 0:02:58]}  a6 {[%clk 0:02:43]} 7. Bxc6 {[%clk 0:02:58]}  bxc6 {[%clk 0:02:44]} 8. O-O {[%clk 0:02:54]}  Nh6 {[%clk 0:02:42]} 9. Nc4 {[%clk 0:02:53]}  d6 {[%clk 0:02:42]} 10. d4 {[%clk 0:02:53]}  exd4 {[%clk 0:02:37]} 11. Nxd4 {[%clk 0:02:53]}  c5 {[%clk 0:02:33]} 12. Nc6 {[%clk 0:02:50]}  Qf8 {[%clk 0:02:33]} 13. Bxg7 {[%clk 0:02:48]}  Qxg7 {[%clk 0:02:34]} 14. Nxd6+ {[%clk 0:02:43]}  cxd6 {[%clk 0:01:54]} 15. Qxd6 {[%clk 0:02:42]}  f6 {[%clk 0:01:54]} 16. Rad1 {[%clk 0:02:34]}  Rf8 {[%clk 0:01:51]} 17. Qxc5 {[%clk 0:02:10]}  Bd7 {[%clk 0:01:43]} 18. e5 {[%clk 0:02:02]}  fxe5 {[%clk 0:01:32]} 19. Rfe1 {[%clk 0:01:59]}  Be6 {[%clk 0:01:32]} 20. Rxe5 {[%clk 0:01:49]}  Kf7 {[%clk 0:01:32]} 21. Rxe6 {[%clk 0:01:38]}  Kg8 {[%clk 0:01:28]} 22. Re7 {[%clk 0:01:34]}  Qf6 {[%clk 0:01:26]} 23. Rc7 {[%clk 0:01:27]}  Rae8 {[%clk 0:01:21]} 24. h3 {[%clk 0:01:25]}  Kh8 {[%clk 0:01:03]} 25. Qd4 {[%clk 0:01:16]}  Qxd4 {[%clk 0:00:59]} 26. Nxd4 {[%clk 0:01:17]}  Rd8 {[%clk 0:00:59]} 27. c3 {[%clk 0:01:16]}  Nf5 {[%clk 0:00:55]} 28. Rc6 {[%clk 0:00:49]}  a5 {[%clk 0:00:53]} 29. Rc5 {[%clk 0:00:48]}  a4 {[%clk 0:00:48]} 30. bxa4 {[%clk 0:00:48]}  Rf6 {[%clk 0:00:43]} 31. a5 {[%clk 0:00:45]}  Rfd6 {[%clk 0:00:41]} 32. a4 {[%clk 0:00:39]}  Nxd4 {[%clk 0:00:38]} 33. Rxd4 {[%clk 0:00:40]}  Rxd4 {[%clk 0:00:38]} 34. cxd4 {[%clk 0:00:40]}  Rxd4 {[%clk 0:00:38]} 35. a6 {[%clk 0:00:40]}  Rxa4 {[%clk 0:00:33]} 36. Rc8+ {[%clk 0:00:40]}  Kg7 {[%clk 0:00:33]} 37. Rc7+ {[%clk 0:00:40]}  Kf6 {[%clk 0:00:30]} 38. a7 {[%clk 0:00:41]}  h5 {[%clk 0:00:27]} 39. g3 {[%clk 0:00:35]}  g5 {[%clk 0:00:26]} 40. Kg2 {[%clk 0:00:32]}  g4 {[%clk 0:00:26]} 41. h4 {[%clk 0:00:32]}  Ra2 {[%clk 0:00:24]} 42. Kf1 {[%clk 0:00:31]}  Ke6 {[%clk 0:00:23]} 43. Rh7 {[%clk 0:00:29]}  Kf6 {[%clk 0:00:21]} 44. Ke1 {[%clk 0:00:28]}  Kg6 {[%clk 0:00:19]} 45. Rb7 {[%clk 0:00:28]}  Kf6 {[%clk 0:00:19]} 46. Kd1 {[%clk 0:00:29]}  Kf5 {[%clk 0:00:16]} 47. Kc1 {[%clk 0:00:28]}  Ke4 {[%clk 0:00:15]} 48. Kb1 {[%clk 0:00:28]}  Ra6 {[%clk 0:00:14]} 49. Kb2 {[%clk 0:00:28]}  Kf3 {[%clk 0:00:12]} 50. Rf7+ {[%clk 0:00:28]}  Kg2 {[%clk 0:00:12]} 51. Kb3 {[%clk 0:00:29]}  Rxa7 {[%clk 0:00:12]} 52. Rxa7 {[%clk 0:00:26]}  Kxf2 {[%clk 0:00:12]} 53. Rh7 {[%clk 0:00:26]}  Kxg3 {[%clk 0:00:13]} 54. Rxh5 {[%clk 0:00:26]}  Kf4 {[%clk 0:00:12]} 55. Rg5 {[%clk 0:00:26]}  g3 {[%clk 0:00:13]} 56. Rg8 {[%clk 0:00:26]}  Kf3 {[%clk 0:00:12]} 57. h5 {[%clk 0:00:27]}  g2 {[%clk 0:00:13]} 58. h6 {[%clk 0:00:27]}  Kf2 {[%clk 0:00:13]} 59. Rxg2+ {[%clk 0:00:27]}  Kxg2 {[%clk 0:00:14]} 60. h7 {[%clk 0:00:28]}  Kf3 {[%clk 0:00:15]} 61. h8=Q {[%clk 0:00:28]}  Ke2 {[%clk 0:00:15]} 62. Qc3 {[%clk 0:00:28]}  Kf2 {[%clk 0:00:16]} 63. Kc4 {[%clk 0:00:29]}  Kf1 {[%clk 0:00:16]} 64. Kd4 {[%clk 0:00:30]}  Kg1 {[%clk 0:00:17]} 65. Ke4 {[%clk 0:00:30]}  Kh1 {[%clk 0:00:18]} 66. Kf3 {[%clk 0:00:29]}  Kh2 {[%clk 0:00:19]} 67. Qc2+ {[%clk 0:00:28]}  Kh3 {[%clk 0:00:20]} 68. Qh7# {[%clk 0:00:29]} 1-0


[Site "https://www.chess.com"]

[Event "Titled Tuesday Blitz March 07 Early 2023"]
[White "Miszler, Levente"]
[Black "Tan, Jun Ying"]
[WhiteFideId "763276"]
[BlackFideId "5710413"]
[WhiteElo "2176"]
[BlackElo "2089"]
[Result "0-1"]
[Round "06"]
[TimeControl "180+2"]
[Date "2023.03.07"]
[WhiteClock "0:00:03"]
[BlackClock "0:00:08"]

1. Nf3 {[%clk 0:03:00]}  c5 {[%clk 0:02:58]} 2. c4 {[%clk 0:02:59]}  Nf6 {[%clk 0:02:54]} 3. Nc3 {[%clk 0:02:58]}  e6 {[%clk 0:02:49]} 4. g3 {[%clk 0:02:58]}  b6 {[%clk 0:02:49]} 5. Bg2 {[%clk 0:02:58]}  Bb7 {[%clk 0:02:50]} 6. O-O {[%clk 0:02:58]}  Be7 {[%clk 0:02:50]} 7. d4 {[%clk 0:02:58]}  cxd4 {[%clk 0:02:50]} 8. Qxd4 {[%clk 0:02:58]}  d6 {[%clk 0:02:47]} 9. b3 {[%clk 0:02:58]}  O-O {[%clk 0:02:37]} 10. Ba3 {[%clk 0:02:56]}  Ne8 {[%clk 0:02:31]} 11. Rfd1 {[%clk 0:02:53]}  Nd7 {[%clk 0:02:20]} 12. Rac1 {[%clk 0:02:44]}  a6 {[%clk 0:02:15]} 13. Ne4 {[%clk 0:02:39]}  Nc5 {[%clk 0:02:12]} 14. Nfd2 {[%clk 0:02:38]}  Qc7 {[%clk 0:02:08]} 15. Nxc5 {[%clk 0:02:26]}  bxc5 {[%clk 0:01:48]} 16. Qd3 {[%clk 0:02:22]}  Bxg2 {[%clk 0:01:48]} 17. Kxg2 {[%clk 0:02:23]}  Nf6 {[%clk 0:01:48]} 18. Bb2 {[%clk 0:02:19]}  Rfd8 {[%clk 0:01:46]} 19. Bxf6 {[%clk 0:02:17]}  Bxf6 {[%clk 0:01:46]} 20. Ne4 {[%clk 0:02:17]}  Be7 {[%clk 0:01:46]} 21. Rc2 {[%clk 0:02:13]}  a5 {[%clk 0:01:46]} 22. Rcd2 {[%clk 0:02:13]}  d5 {[%clk 0:01:42]} 23. cxd5 {[%clk 0:02:11]}  exd5 {[%clk 0:01:43]} 24. Nc3 {[%clk 0:02:08]}  d4 {[%clk 0:01:38]} 25. Na4 {[%clk 0:02:04]}  Bg5 {[%clk 0:01:16]} 26. Rc2 {[%clk 0:02:04]}  Be7 {[%clk 0:01:07]} 27. Qf3 {[%clk 0:02:03]}  Rac8 {[%clk 0:01:03]} 28. Rdc1 {[%clk 0:01:54]}  Qa7 {[%clk 0:01:00]} 29. Qd3 {[%clk 0:01:38]}  h6 {[%clk 0:00:57]} 30. Qb5 {[%clk 0:01:28]}  Qa8+ {[%clk 0:00:57]} 31. Kg1 {[%clk 0:01:28]}  Bg5 {[%clk 0:00:51]} 32. Rd1 {[%clk 0:01:27]}  Qe4 {[%clk 0:00:30]} 33. Qd3 {[%clk 0:01:18]}  Qe7 {[%clk 0:00:26]} 34. Qb5 {[%clk 0:01:01]}  Qe4 {[%clk 0:00:23]} 35. Rd3 {[%clk 0:00:44]}  Rb8 {[%clk 0:00:15]} 36. Nxc5 {[%clk 0:00:37]}  Qxe2 {[%clk 0:00:10]} 37. Rxe2 {[%clk 0:00:20]}  Rxb5 {[%clk 0:00:11]} 38. Ne4 {[%clk 0:00:16]}  f5 {[%clk 0:00:11]} 39. Nxg5 {[%clk 0:00:16]}  hxg5 {[%clk 0:00:12]} 40. Red2 {[%clk 0:00:14]}  Rbd5 {[%clk 0:00:12]} 41. Kg2 {[%clk 0:00:15]}  g4 {[%clk 0:00:13]} 42. f3 {[%clk 0:00:14]}  gxf3+ {[%clk 0:00:12]} 43. Kxf3 {[%clk 0:00:15]}  g5 {[%clk 0:00:12]} 44. a3 {[%clk 0:00:14]}  Kf7 {[%clk 0:00:12]} 45. b4 {[%clk 0:00:15]}  axb4 {[%clk 0:00:10]} 46. axb4 {[%clk 0:00:16]}  Kf6 {[%clk 0:00:11]} 47. Rc2 {[%clk 0:00:15]}  g4+ {[%clk 0:00:11]} 48. Kf4 {[%clk 0:00:12]}  R8d6 {[%clk 0:00:12]} 49. Rc5 {[%clk 0:00:11]}  Re6 {[%clk 0:00:08]} 50. Rc6 {[%clk 0:00:03]}  Rxc6 {[%clk 0:00:08]} 0-1


[Site "https://www.chess.com"]